bitfinex/quotes_SOLUSD_20240616
["timestamp","ask_amount","ask_price","bid_price","bid_amount"]
[1718581394621,21.8238,150.47,150.39,0.17]
[1718581394825,21.8238,150.47,150.43,5.94]
[1718581399423,21.8238,150.47,150.39,0.68]
[1718581399424,22.4854,150.51,150.44,5.94]
[1718581399630,5.94,150.5,150.45,5.94]
[1718581399930,28.4254,150.51,150.46,5.94]
[1718581400233,22.4854,150.51,150.44,0.17]
[1718581400423,6.91700183,150.56,150.5,5.94]
[1718581400424,5.94,150.55,150.5,5.94]
[1718581400627,5.94,150.54,150.49,5.94]
[1718581401347,22.4854,150.56,150.49,5.94]
[1718581401556,22.4854,150.56,150.5,5.94]
[1718581401734,5.94,150.55,150.5,5.94]
[1718581402428,22.4854,150.56,150.5,5.94]
[1718581402636,28.4254,150.56,150.5,5.94]
[1718581403256,5.94,150.55,150.5,5.94]
[1718581403635,8.3976,150.55,150.5,5.94]
[1718581403833,5.94,150.53,150.45,0.34]
[1718581404036,5.94,150.53,150.48,5.94]
[1718581404445,24.9429,150.56,150.49,5.94]
[1718581404753,5.94,150.54,150.49,5.94]
[1718581406135,5.94,150.54,150.5,1.32865283]
[1718581406630,5.94,150.55,150.5,1.32865283]
[1718581406830,22.4854,150.56,150.5,1.32865283]
[1718581407027,5.94,150.55,150.49,5.94]
[1718581408334,5.94,150.54,150.45,25.69698137]
[1718581408539,5.94,150.52,150.47,5.94]
[1718581408732,5.94,150.52,150.48,20.0]
[1718581409140,5.94,150.53,150.48,25.94]
[1718581410733,2.4577,150.55,150.48,25.94]
[1718581410927,5.94,150.53,150.48,25.94]
[1718581411141,22.4854,150.56,150.49,5.94]
[1718581411330,5.94,150.55,150.5,5.94]
[1718581412045,5.94,150.57,150.51,5.94]
[1718581413158,5.94,150.56,150.51,5.94]
[1718581413363,14.7429,150.58,150.51,5.94]
[1718581413548,5.94,150.56,150.51,5.94]
[1718581417856,5.94,150.56,150.52,1.3267897]
[1718581418939,24.5718,150.58,150.52,1.3267897]
[1718581419261,7.3717,150.58,150.52,1.3267897]
[1718581419439,5.94,150.56,150.52,1.3267897]
[1718581421945,2.4572,150.58,150.52,1.3267897]
[1718581422146,5.94,150.57,150.52,1.3267897]
[1718581422873,23.7913458,150.6,150.52,1.3267897]
[1718581422874,0.8526458,150.6,150.53,5.94]
[1718581423071,5.94,150.59,150.53,5.94]
[1718581423739,5.94,150.59,150.54,1.32586336]
[1718581424441,0.8526458,150.6,150.54,1.32586336]
[1718581424645,6.7926458,150.6,150.55,5.94]
[1718581424962,6.7926458,150.6,150.56,1.32769343]
[1718581425767,5.94,150.59,150.53,15.7443]
[1718581425939,5.94,150.59,150.54,20.0]
[1718581427451,5.94,150.59,150.53,21.6843]
[1718581427767,5.94,150.59,150.54,20.0]
[1718581428796,7.374,150.53,150.45,5.35698137]
[1718581429063,5.94,150.51,150.42,16.6039]
[1718581429276,5.94,150.52,150.46,5.94]
[1718581429642,5.94,150.51,150.42,36.5639]
[1718581429847,5.94,150.51,150.46,5.94]
[1718581430788,5.94,150.52,150.46,5.94]
[1718581430942,5.94,150.52,150.47,20.0]
[1718581433938,4.9147,150.57,150.47,25.94]
[1718581434144,5.94,150.53,150.48,5.94]
[1718581435559,5.94,150.52,150.47,25.94]
[1718581437283,5.94,150.52,150.47,20.0]
[1718581437448,5.94,150.52,150.47,5.94]
[1718581437644,5.94,150.52,150.48,20.0]
[1718581442165,17.46743258,150.59,150.48,35.1815]
[1718581442476,17.46743258,150.59,150.49,6.44174858]
[1718581442477,5.94,150.54,150.49,6.44174858]
[1718581442778,5.94,150.54,150.49,5.94]
[1718581443566,5.94,150.54,150.48,35.1815]
[1718581443780,5.94,150.52,150.48,35.1815]
[1718581447090,5.94,150.53,150.48,41.1215]
[1718581447668,5.94,150.53,150.48,35.1815]
[1718581447873,5.94,150.53,150.48,41.1215]
[1718581448177,5.94,150.54,150.49,5.94]
[1718581448389,0.8526458,150.6,150.54,0.17]
[1718581448571,0.8526458,150.6,150.56,5.94]
[1718581448968,0.8526458,150.6,150.57,5.94]
[1718581449170,0.8526458,150.6,150.56,5.94]
[1718581452511,6.4793,150.68,150.59,5.94]
[1718581452800,5.94,150.67,150.62,5.94]
[1718581453006,12.4193,150.68,150.63,5.94]
[1718581453168,5.94,150.66,150.58,15.8475]
[1718581453364,5.94,150.66,150.61,5.94]
[1718581453865,14.8748,150.68,150.59,0.17]
[1718581454186,5.94,150.67,150.62,5.94]
[1718581454970,5.94,150.67,150.59,20.34]
[1718581454971,5.94,150.65,150.59,20.0]
[1718581455170,5.94,150.65,150.59,25.94]
[1718581455576,5.94,150.65,150.6,5.94]
[1718581455773,8.3957,150.67,150.62,5.94]
[1718581455975,28.40267035,150.82,150.59,20.0]
[1718581455976,6.0921,150.73,150.66,5.94]
[1718581456205,6.0921,150.73,150.65,0.17]
[1718581456505,0.8526458,150.76,150.7,5.94]
[1718581456506,5.94,150.75,150.7,5.94]
[1718581457064,0.8526458,150.76,150.72,5.94]
[1718581457270,0.8526458,150.76,150.73,5.94]
[1718581457478,0.8526458,150.76,150.72,5.94]
[1718581457895,0.8526458,150.76,150.73,5.94]
[1718581458390,0.8526458,150.76,150.72,5.94]
[1718581458581,6.7926458,150.76,150.71,5.94]
[1718581459095,0.8526458,150.76,150.72,5.94]
[1718581459679,0.8526458,150.76,150.73,5.94]
[1718581462596,0.8526458,150.76,150.74,5.94]
[1718581462802,0.8526458,150.76,150.75,5.94]
[1718581464979,0.8526458,150.76,150.71,15.6733]
[1718581465174,0.8526458,150.76,150.67,15.8592]
[1718581465396,0.8526458,150.76,150.74,5.94]
[1718581465774,0.8526458,150.76,150.67,15.8592]
[1718581465976,0.8526458,150.76,150.72,5.94]
[1718581466979,0.8526458,150.76,150.73,5.94]
[1718581467902,0.8526458,150.76,150.67,15.8592]
[1718581468102,3.3068458,150.76,150.68,20.0]
[1718581468301,0.8526458,150.76,150.71,5.94]
[1718581468798,0.8526458,150.76,150.72,5.94]
[1718581470799,0.8526458,150.76,150.68,20.0]
[1718581471101,6.7926458,150.76,150.71,5.94]
[1718581472102,6.7926458,150.76,150.68,20.0]
[1718581472298,6.7926458,150.76,150.71,5.94]
[1718581478902,0.8526458,150.76,150.71,5.94]
[1718581481687,0.8526458,150.76,150.74,5.94]
[1718581482504,0.8526458,150.76,150.73,5.94]
[1718581484919,0.8526458,150.76,150.72,5.94]
[1718581485208,0.8526458,150.76,150.68,20.0]
[1718581485392,0.8526458,150.76,150.72,5.94]
[1718581487616,0.8526458,150.76,150.74,5.94]
[1718581488790,0.8526458,150.76,150.69,0.17]
[1718581488991,0.8526458,150.76,150.73,5.94]
[1718581490917,0.8526458,150.76,150.69,1.38990054]
[1718581491110,0.8526458,150.76,150.74,5.94]
[1718581492693,0.8526458,150.76,150.73,5.94]
[1718581493920,0.8526458,150.76,150.74,5.94]
[1718581496691,0.8526458,150.76,150.75,5.94]
[1718581498489,0.8526458,150.76,150.74,5.94]
[1718581502098,0.8526458,150.76,150.68,20.0]
[1718581502408,0.8526458,150.76,150.71,5.94]
[1718581502612,0.8526458,150.76,150.72,27.96472827]
[1718581502800,0.8526458,150.76,150.72,20.0]
[1718581502995,0.8526458,150.76,150.71,5.94]
[1718581503225,5.94,150.75,150.67,15.8592]
[1718581503519,5.94,150.75,150.68,7.96516667]
[1718581503744,6.7926458,150.76,150.7,5.94]
[1718581503934,6.7926458,150.76,150.71,7.96516667]
[1718581506341,6.7926458,150.76,150.7,5.94]
[1718581507012,21.8699,150.75,150.65,3.46290917]
[1718581507336,5.94,150.7,150.66,7.96666736]
[1718581507530,5.94,150.7,150.65,5.94]
[1718581507737,5.94,150.7,150.64,5.94]
[1718581507905,5.94,150.7,150.65,13.90787885]
[1718581508233,5.94,150.7,150.6,7.81467705]
[1718581508234,5.94,150.66,150.6,5.94]
[1718581508415,5.94,150.66,150.61,5.94]
[1718581508612,22.5143,150.69,150.61,5.94]
[1718581508613,5.94,150.67,150.61,5.94]
[1718581508827,5.94,150.68,150.63,5.94]
[1718581509035,28.2843,150.69,150.64,5.94]
[1718581509214,22.3443,150.69,150.65,5.94]
[1718581510123,22.3443,150.69,150.6,0.17]
[1718581510316,5.94,150.68,150.63,5.94]
[1718581510717,5.94,150.68,150.62,5.94]
[1718581511450,5.94,150.67,150.62,5.94]
[1718581511742,22.3443,150.69,150.6,0.34]
[1718581511972,15.6811,150.69,150.65,5.94]
[1718581512108,15.6811,150.69,150.64,5.94]
[1718581514340,15.6811,150.69,150.64,4.94]
[1718581515075,21.9937,150.73,150.66,5.94]
[1718581515359,21.9937,150.73,150.68,5.94]
[1718581515724,21.9937,150.73,150.64,5.94]
[1718581515923,21.9937,150.73,150.69,5.94]
[1718581516158,21.9937,150.73,150.68,5.94]
[1718581516325,27.9337,150.73,150.68,5.94]
[1718581517444,27.9337,150.73,150.65,0.17]
[1718581517445,30.3884,150.73,150.65,0.17]
[1718581517771,5.94,150.71,150.66,5.94]
[1718581517923,5.94,150.7,150.65,5.94]
[1718581518768,5.94,150.71,150.65,5.94]
[1718581519058,0.8526458,150.76,150.7,5.94]
[1718581519059,6.7926458,150.76,150.7,5.94]
[1718581519225,6.7926458,150.76,150.71,5.94]
[1718581519426,6.7926458,150.76,150.7,5.94]
[1718581520543,0.8526458,150.76,150.73,5.94]
[1718581521255,0.8526458,150.76,150.67,0.65415366]
[1718581521557,0.8526458,150.76,150.73,5.94]
[1718581523258,0.8526458,150.76,150.72,5.94]
[1718581525071,6.7926458,150.76,150.71,5.94]
[1718581525445,0.8526458,150.76,150.71,5.94]
[1718581525649,0.8526458,150.76,150.72,5.94]
[1718581527856,0.8526458,150.76,150.68,0.17]
[1718581528168,0.8526458,150.76,150.67,0.17]
[1718581528169,0.8526458,150.76,150.67,0.68]
[1718581528381,6.7926458,150.76,150.71,5.94]
[1718581530070,5.94,150.74,150.66,0.17]
[1718581530243,5.94,150.74,150.69,5.94]
[1718581530445,0.8526458,150.76,150.69,5.94]
[1718581530778,5.94,150.75,150.7,5.94]
[1718581531244,6.7926458,150.76,150.71,5.94]
[1718581531448,5.94,150.75,150.7,5.94]
[1718581533283,0.8526458,150.76,150.65,23.76918352]
[1718581533284,0.8526458,150.76,150.71,5.94]
[1718581533473,6.7926458,150.76,150.71,5.94]
[1718581534351,0.8526458,150.76,150.71,5.94]
[1718581537301,0.8526458,150.76,150.66,0.17]
[1718581537490,2.4545,150.75,150.66,20.34]
[1718581537646,2.4545,150.75,150.69,5.94]
[1718581537647,8.3945,150.74,150.69,5.94]
[1718581538088,13.3037,150.74,150.69,5.94]
[1718581538275,8.3945,150.74,150.66,20.0]
[1718581538471,5.94,150.74,150.69,5.94]
[1718581539356,25.3954458,150.76,150.69,5.94]
[1718581539552,5.94,150.74,150.69,5.94]
[1718581539862,5.94,150.75,150.69,5.94]
[1718581540288,8.3944,150.75,150.69,5.94]
[1718581540464,5.94,150.75,150.69,5.94]
[1718581541184,2.4545,150.74,150.66,20.0]
[1718581541393,2.4545,150.74,150.68,5.94]
[1718581541394,5.94,150.73,150.68,5.94]
[1718581542459,5.94,150.71,150.6,281.1784]
[1718581542694,5.94,150.71,150.66,5.94]
[1718581545086,28.837,150.72,150.67,5.94]
[1718581546389,28.667,150.72,150.67,5.94]
[1718581546593,22.727,150.72,150.67,5.94]
[1718581547288,22.727,150.72,150.68,5.94]
[1718581547677,22.727,150.72,150.67,5.94]
[1718581557025,5.94,150.71,150.61,8.32908352]
[1718581557224,5.94,150.7,150.65,5.94]
[1718581558311,5.94,150.71,150.66,5.94]
[1718581558911,5.94,150.71,150.65,5.94]
[1718581560717,5.94,150.71,150.66,5.94]
[1718581561291,5.94,150.71,150.62,0.17]
[1718581561504,5.94,150.71,150.62,20.34]
[1718581561717,5.94,150.7,150.62,20.34]
[1718581561925,22.727,150.72,150.62,20.0]
[1718581561926,5.94,150.68,150.62,20.0]
[1718581562607,5.94,150.68,150.63,5.94]
[1718581564516,5.94,150.67,150.62,5.94]
[1718581564726,5.94,150.67,150.61,20.0]
[1718581564727,5.94,150.66,150.61,25.94]
[1718581565395,6.4392,150.65,150.57,8.32908352]
[1718581565604,5.94,150.63,150.58,5.94]
[1718581565812,5.94,150.63,150.57,5.94]
[1718581566010,5.94,150.63,150.58,5.94]
[1718581566215,12.3792,150.65,150.6,5.94]
[1718581566921,6.4392,150.65,150.62,5.94]
[1718581567127,15.2616,150.67,150.62,5.94]
[1718581567128,21.2016,150.67,150.62,5.94]
[1718581568005,21.2016,150.67,150.61,5.94]
[1718581568429,21.2016,150.67,150.62,5.94]
[1718581568730,21.2016,150.67,150.61,5.94]
[1718581569912,21.2016,150.67,150.62,5.94]
[1718581569913,15.2616,150.67,150.62,5.94]
[1718581570235,15.2616,150.67,150.63,5.94]
[1718581570915,15.2616,150.67,150.57,0.17]
[1718581571111,15.2616,150.67,150.63,5.94]
[1718581579128,21.2016,150.67,150.57,29.00908352]
[1718581579328,21.2016,150.67,150.61,5.94]
[1718581580140,23.6573,150.67,150.61,5.94]
[1718581580547,21.2016,150.67,150.61,5.94]
[1718581580727,23.6573,150.67,150.61,5.94]
[1718581580935,23.6573,150.67,150.57,29.00908352]
[1718581581138,23.6573,150.67,150.61,5.94]
[1718581581344,21.2016,150.67,150.61,5.94]
[1718581581521,23.6573,150.67,150.61,5.94]
[1718581581716,15.2616,150.67,150.61,5.94]
[1718581581940,15.2616,150.67,150.6,0.17]
[1718581582237,23.54805815,150.72,150.66,5.94]
[1718581582442,16.6351,150.72,150.67,5.94]
[1718581582911,16.6351,150.72,150.68,5.94]
[1718581583110,16.6351,150.72,150.7,5.94]
[1718581583317,6.5026,150.73,150.7,5.94]
[1718581585236,0.8526458,150.76,150.72,5.94]
[1718581585430,0.8526458,150.76,150.75,5.94]
[1718581585956,0.8526458,150.76,150.69,0.17]
[1718581586160,0.8526458,150.76,150.69,20.68]
[1718581586359,0.8526458,150.76,150.75,5.94]
[1718581588973,0.8526458,150.76,150.71,0.17]
[1718581589158,0.8526458,150.76,150.71,20.0]
[1718581589482,0.8526458,150.76,150.74,5.94]
[1718581589647,0.8526458,150.76,150.75,5.94]
[1718581592752,0.8526458,150.76,150.72,0.17]
[1718581592953,0.8526458,150.76,150.75,5.94]
[1718581598564,0.8526458,150.76,150.72,0.68]
[1718581598769,0.8526458,150.76,150.75,5.94]
[1718581599459,0.8526458,150.76,150.74,5.94]
[1718581600375,0.8526458,150.76,150.75,5.94]
[1718581601850,0.8526458,150.76,150.71,20.0]
[1718581602078,0.8526458,150.76,150.74,5.94]
[1718581602272,0.8526458,150.76,150.75,5.94]
[1718581602472,0.8526458,150.76,150.74,5.94]
[1718581602980,0.8526458,150.76,150.75,5.94]
[1718581605681,0.8526458,150.76,150.72,23.76]
[1718581605893,0.8526458,150.76,150.73,20.0]
[1718581606080,0.8526458,150.76,150.75,5.94]
[1718581606284,0.8526458,150.76,150.75,7.26641674]
[1718581606470,0.8526458,150.76,150.75,5.94]
[1718581612383,0.8526458,150.76,150.75,25.94]
[1718581616870,0.8526458,150.76,150.75,26.11]
[1718581617789,0.8526458,150.76,150.75,26.28]
[1718581618397,0.8526458,150.76,150.75,26.11]
[1718581618710,0.8526458,150.91,150.86,0.17]
[1718581618873,0.8526458,150.91,150.9,5.94]
[1718581619189,6.5777,150.99,150.9,5.94]
[1718581619190,6.5777,150.99,150.91,0.17]
[1718581619383,6.5777,150.99,150.95,5.94]
[1718581620297,5.94,150.98,150.91,0.34]
[1718581620482,5.94,150.98,150.93,5.94]
[1718581620665,6.5777,150.99,150.95,5.94]
[1718581621068,5.1,151.0,150.96,5.94]
[1718581621264,5.1,151.0,150.97,5.94]
[1718581621569,5.1,151.0,150.96,5.94]
[1718581623463,11.04,151.0,150.92,0.34]
[1718581623690,2.4505,150.99,150.91,5.94]
[1718581623889,5.94,150.97,150.89,20.0]
[1718581624070,5.94,150.97,150.9,1.32504652]
[1718581624271,2.4507,150.98,150.9,1.32504652]
[1718581624464,5.94,150.97,150.9,1.32504652]
[1718581624883,16.3672,150.97,150.89,20.0]
[1718581625199,16.3672,150.97,150.85,37.2183]
[1718581625200,5.94,150.94,150.85,15.1677]
[1718581625384,5.94,150.93,150.88,5.94]
[1718581628784,5.94,150.92,150.83,0.17]
[1718581628994,5.94,150.92,150.86,5.94]
[1718581629276,5.94,150.92,150.83,20.68]
[1718581629498,5.94,150.92,150.86,5.94]
[1718581630208,5.94,150.92,150.87,5.94]
[1718581632915,7.3539,150.94,150.86,5.94]
[1718581633076,5.94,150.91,150.83,20.68]
[1718581633280,5.94,150.91,150.86,5.94]
[1718581633473,5.94,150.91,150.84,1.32558565]
[1718581633684,5.94,150.91,150.86,5.94]
[1718581635017,5.94,150.91,150.87,1.32549215]
[1718581635423,5.94,150.91,150.86,5.94]
[1718581635712,5.94,150.92,150.86,5.94]
[1718581636107,7.3536,150.95,150.86,5.94]
[1718581636333,7.3536,150.95,150.83,20.0]
[1718581636334,5.94,150.93,150.87,5.94]
[1718581637814,6.0794,150.96,150.89,5.94]
[1718581638125,5.94,150.94,150.89,5.94]
[1718581638303,5.94,150.94,150.86,0.17]
[1718581638627,5.94,150.93,150.88,5.94]
[1718581640009,5.94,150.92,150.87,5.94]
[1718581640526,5.94,150.92,150.84,0.34]
[1718581640724,5.94,150.92,150.86,5.94]
[1718581640907,5.94,150.91,150.87,20.0]
[1718581642297,5.94,150.92,150.87,20.0]
[1718581642999,7.3535,150.95,150.87,25.94]
[1718581643193,9.0404,150.96,150.88,5.94]
[1718581643394,5.94,150.94,150.88,5.94]
[1718581644201,5.94,150.95,150.89,5.94]
[1718581644394,6.0794,150.96,150.89,5.94]
[1718581644602,5.94,150.94,150.89,5.94]
[1718581644951,6.0794,150.96,150.9,5.94]
[1718581645137,5.94,150.95,150.9,5.94]
[1718581645698,6.0794,150.96,150.9,5.94]
[1718581645895,5.94,150.95,150.9,5.94]
[1718581648019,16.3672,150.97,150.91,20.0]
[1718581648225,11.1426,151.0,150.94,5.94]
[1718581648226,18.4936,151.0,150.94,5.94]
[1718581648434,11.1426,151.0,150.94,5.94]
[1718581648735,5.94,150.99,150.94,5.94]
[1718581648931,17.0826,151.0,150.94,5.94]
[1718581649110,11.1426,151.0,150.95,5.94]
[1718581649309,17.0826,151.0,150.95,5.94]
[1718581652214,17.0826,151.0,150.92,0.17]
[1718581652522,17.0826,151.0,150.95,5.94]
[1718581652523,5.1,151.0,150.95,5.94]
[1718581653103,11.04,151.0,150.92,0.68]
[1718581653309,11.04,151.0,150.95,5.94]
[1718581656336,5.1,151.0,150.95,5.94]
[1718581658334,5.1,151.0,150.96,5.94]
[1718581664448,5.1,151.0,150.95,5.94]
[1718581668143,5.1,151.0,150.96,5.94]
[1718581668340,5.1,151.0,150.95,5.94]
[1718581671945,5.1,151.0,150.92,0.68]
[1718581672148,5.1,151.0,150.95,5.94]
[1718581673049,5.1,151.0,150.92,0.68]
[1718581673050,5.94,150.98,150.9,0.17]
[1718581673237,5.94,150.98,150.93,5.94]
[1718581673439,5.94,150.99,150.94,5.94]
[1718581675660,5.94,150.99,150.9,0.68]
[1718581675971,5.94,150.99,150.93,5.94]
[1718581679227,5.94,150.99,150.9,2.00484763]
[1718581679429,5.94,150.99,150.93,5.94]
[1718581680025,5.94,150.99,150.9,2.00484763]
[1718581680230,5.94,150.99,150.93,5.94]
[1718581680452,5.94,150.98,150.9,0.68]
[1718581680633,27.9978,150.97,150.9,0.34]
[1718581680838,5.94,150.97,150.9,0.17]
[1718581681245,5.94,150.97,150.91,5.94]
[1718581681669,6.1018,150.98,150.87,18.19214497]
[1718581681954,6.1018,150.98,150.87,5.94]
[1718581681955,5.94,150.92,150.87,5.94]
[1718581682160,5.94,150.92,150.85,258.8]
[1718581682657,5.94,150.9,150.85,5.94]
[1718581682966,6.3714,150.92,150.88,5.94]
[1718581684246,5.94,150.94,150.88,5.94]
[1718581685060,29.4146,150.96,150.88,5.94]
[1718581685370,5.94,150.94,150.88,5.94]
[1718581685965,5.94,150.93,150.88,5.94]
[1718581687494,5.94,150.95,150.89,6.11]
[1718581687757,5.94,150.94,150.89,6.11]
[1718581687960,5.94,150.94,150.89,5.94]
[1718581688170,5.94,150.94,150.87,0.17]
[1718581688333,5.94,150.93,150.87,0.17]
[1718581688533,5.94,150.93,150.86,0.17]
[1718581688534,5.94,150.93,150.88,5.94]
[1718581688946,39.2186,150.96,150.83,20.0]
[1718581688947,5.94,150.91,150.86,5.94]
[1718581689142,5.94,150.91,150.87,20.0]
[1718581689349,5.94,150.92,150.87,20.0]
[1718581689864,5.94,150.92,150.87,25.94]
[1718581690464,5.94,150.92,150.87,5.94]
[1718581690756,5.94,150.9,150.85,5.94]
[1718581692239,5.94,150.9,150.85,5.90881]
[1718581692861,21.6198,150.9,150.81,6.791059]
[1718581693062,5.94,150.86,150.8,5.94]
[1718581693441,0.51,150.89,150.8,5.94]
[1718581693654,5.94,150.87,150.82,5.94]
[1718581693857,21.6198,150.9,150.75,22.49729565]
[1718581693858,21.6198,150.9,150.84,5.94]
[1718581694076,21.6198,150.9,150.85,5.94]
[1718581694077,27.5598,150.9,150.85,5.94]
[1718581694247,27.5598,150.9,150.84,5.94]
[1718581695564,5.94,150.89,150.81,0.17]
[1718581695763,5.94,150.89,150.84,5.94]
[1718581696157,21.6198,150.9,150.86,5.94]
[1718581696685,21.6198,150.9,150.85,5.94]
[1718581696869,21.6198,150.9,150.86,5.94]
[1718581697377,21.6198,150.9,150.85,5.94]
[1718581697378,27.5598,150.9,150.85,5.94]
[1718581699858,21.6198,150.9,150.81,16.9994]
[1718581700061,15.2665,150.9,150.87,5.94]
[1718581701967,15.5046,150.93,150.89,5.94]
[1718581702357,6.4545,150.94,150.9,5.94]
[1718581702563,6.4545,150.94,150.91,5.94]
[1718581703089,21.4999,150.97,150.91,5.94]
[1718581703291,5.94,150.96,150.91,5.94]
[1718581703950,5.94,150.94,150.85,0.17]
[1718581704157,2.451,150.96,150.89,5.94]
[1718581704454,2.451,150.96,150.85,20.68]
[1718581704455,5.94,150.92,150.85,0.17]
[1718581704697,5.94,150.91,150.86,5.94]
[1718581707066,5.94,150.9,150.82,20.0]
[1718581707379,5.94,150.9,150.84,5.94]
[1718581707893,5.94,150.89,150.84,5.94]
[1718581708462,5.94,150.89,150.81,16.3194]
[1718581708704,5.94,150.89,150.8,7.15959565]
[1718581708705,5.94,150.88,150.8,7.15959565]
[1718581708990,5.94,150.88,150.83,5.94]
[1718581709199,21.9201,150.91,150.83,5.94]
[1718581709502,5.94,150.89,150.84,5.94]
[1718581709870,24.34202,150.91,150.83,5.94]
[1718581709871,5.94,150.88,150.83,5.94]
[1718581710194,5.94,150.9,150.82,0.17]
[1718581710406,5.94,150.9,150.82,0.68]
[1718581710685,5.94,150.9,150.85,5.94]
[1718581710859,21.89022,150.91,150.85,5.94]
[1718581710860,27.83022,150.91,150.85,5.94]
[1718581712384,30.28202,150.91,150.85,5.94]
[1718581712785,5.94,150.9,150.85,5.94]
[1718581714870,2.4523,150.88,150.81,20.0]
[1718581715104,7.3565,150.89,150.81,20.0]
[1718581715415,5.94,150.87,150.82,5.94]
[1718581720389,5.94,150.87,150.79,0.17]
[1718581720588,5.94,150.87,150.82,5.94]
[1718581724990,5.94,150.86,150.81,5.94]
[1718581725993,5.94,150.87,150.82,5.94]
[1718581727609,5.94,150.87,150.79,20.0]
[1718581727779,5.94,150.86,150.81,5.94]
[1718581729816,5.94,150.87,150.81,5.94]
[1718581730108,21.89022,150.91,150.78,20.17]
[1718581730323,5.94,150.89,150.81,0.17]
[1718581730520,5.94,150.9,150.85,5.94]
[1718581732325,21.89022,150.91,150.85,5.94]
[1718581732532,5.94,150.9,150.85,5.94]
[1718581733093,5.94,150.89,150.84,5.94]
[1718581734800,5.94,150.88,150.83,5.94]
[1718581734997,5.94,150.88,150.84,20.0]
[1718581737287,21.89022,150.91,150.84,20.0]
[1718581737491,5.94,150.89,150.84,25.94]
[1718581740004,21.89022,150.91,150.85,0.50043806]
[1718581740228,5.94,150.9,150.85,6.44043806]
[1718581740416,15.84452,150.91,150.85,6.44043806]
[1718581740604,5.94,150.9,150.85,6.44043806]
[1718581740810,5.94,150.9,150.85,5.94]
[1718581741009,5.94,150.89,150.84,25.94]
[1718581742395,5.94,150.88,150.82,16.1736]
[1718581742593,5.94,150.88,150.82,22.1136]
[1718581743021,5.94,150.87,150.82,22.1136]
[1718581744612,2.4519,150.9,150.82,22.1136]
[1718581744823,5.94,150.87,150.82,22.1136]
[1718581746833,5.94,150.9,150.83,0.17]
[1718581747001,5.94,150.9,150.85,5.94]
[1718581748017,15.84452,150.91,150.85,5.94]
[1718581748221,5.94,150.9,150.85,5.94]
[1718581748916,5.94,150.89,150.84,5.94]
[1718581749821,5.94,150.89,150.82,16.1736]
[1718581750003,5.94,150.88,150.82,16.1736]